fUSD/lending_fUSD_20250305
["ID","MTS","AMOUNT","RATE_DAILY","PERIOD"]
[355470010,1741192241395,-591.79,0.00010999,2]
[355470011,1741192241404,-503.82,0.00010999,2]
[355470012,1741192241413,-500.0,0.00010999,2]
[355470013,1741192241422,-413.77,0.00010999,2]
[355470014,1741192241430,-500.0,0.00010999,2]
[355470015,1741192241439,-500.0,0.00010999,2]
[355470016,1741192241448,-500.0,0.00010999,2]
[355470017,1741192241457,-500.0,0.00010999,2]
[355470018,1741192241466,-500.0,0.00010999,2]
[355470019,1741192241475,-687.12,0.00010999,2]
[355470020,1741192241484,-607.91,0.00010999,2]
[355470021,1741192241493,-500.0,0.00010999,2]
[355470022,1741192241502,-500.0,0.00010999,2]
[355470023,1741192241511,-500.0,0.00010999,2]
[355470024,1741192241519,-659.22,0.00010999,2]
[355470025,1741192241528,-500.0,0.00010999,2]
[355470026,1741192241537,-500.0,0.00010999,2]
[355470027,1741192241548,-500.0,0.00010999,2]
[355470028,1741192241557,-500.0,0.00010999,2]
[355470029,1741192241567,-4088.51,0.00010999,2]
[355470030,1741192241576,-736.09,0.00010999,2]
[355470031,1741192241589,-662.7,0.00010999,2]
[355470032,1741192241599,-727.65,0.00010999,2]
[355470033,1741192241608,-500.0,0.00010999,2]
[355470034,1741192241617,-500.0,0.00010999,2]
[355470035,1741192241627,-990.33,0.00010999,2]
[355470036,1741192241636,-500.0,0.00010999,2]
[355470037,1741192241645,-500.0,0.00010999,2]
[355470038,1741192241654,-692.24,0.00010999,2]
[355470039,1741192241663,-860.66,0.00010999,2]
[355470040,1741192241674,-500.0,0.00010999,2]
[355470041,1741192241683,-500.0,0.00010999,2]
[355470042,1741192241692,-541.48,0.00010999,2]
[355470043,1741192241702,-500.0,0.00010999,2]
[355470044,1741192241711,-500.0,0.00010999,2]
[355470045,1741192241719,-812.29,0.00010999,2]
[355470046,1741192241729,-500.0,0.00010999,2]
[355470047,1741192241738,-500.0,0.00010999,2]
[355470048,1741192241747,-500.0,0.00010999,2]
[355470049,1741192241756,-1059.56,0.00010999,2]
[355470050,1741192241766,-623.52,0.00010999,2]
[355470051,1741192241775,-500.0,0.00010999,2]
[355470052,1741192241785,-500.0,0.00010999,2]
[355470053,1741192241796,-520.9,0.00010999,2]
[355470054,1741192241806,-500.0,0.00010999,2]
[355470055,1741192241816,-500.0,0.00010999,2]
[355470056,1741192241825,-500.0,0.00010999,2]
[355470057,1741192241834,-500.0,0.00010999,2]
[355470058,1741192241844,-645.16,0.00010999,2]
[355470059,1741192241853,-500.0,0.00010999,2]
[355470060,1741192241863,-500.0,0.00010999,2]
[355470061,1741192241872,-500.0,0.00010999,2]
[355470062,1741192241881,-648.33,0.00010999,2]
[355470063,1741192241891,-500.0,0.00010999,2]
[355470064,1741192241900,-500.0,0.00010999,2]
[355470065,1741192241909,-917.08,0.00010999,2]
[355470066,1741192241918,-500.0,0.00010999,2]
[355470067,1741192241928,-500.0,0.00010999,2]
[355470068,1741192241937,-850.44,0.00010999,2]
[355470069,1741192241946,-500.0,0.00010999,2]
[355470070,1741192241955,-500.0,0.00010999,2]
[355470071,1741192241964,-334.30326509,0.00010999,2]
[355470072,1741192241983,-165.69673491,0.00010999,2]
[355470073,1741192241993,-624.55,0.00010999,2]
[355470074,1741192242002,-500.0,0.00010999,2]
[355470075,1741192242011,-854.2,0.00010999,2]
[355470076,1741192242020,-31.22676507,0.00010999,2]
[355470077,1741192242031,-468.77323493,0.00010999,2]
[355470078,1741192242039,-500.0,0.00010999,2]
[355470079,1741192242049,-759.28,0.00010999,2]
[355470080,1741192242058,-500.0,0.00010999,2]
[355470081,1741192242067,-500.0,0.00010999,2]
[355470082,1741192242077,-500.0,0.00010999,2]
[355470083,1741192242086,-500.0,0.00010999,2]
[355470084,1741192242094,-536.96,0.00010999,2]
[355470085,1741192242102,-621.17,0.00010999,2]
[355470086,1741192242110,-725.89,0.00010999,2]
[355470087,1741192242117,-500.0,0.00010999,2]
[355470088,1741192242124,-972.93,0.00010999,2]
[355470089,1741192242131,-565.76,0.00010999,2]
[355470090,1741192242140,-500.0,0.00010999,2]
[355470091,1741192242147,-608.14,0.00010999,2]
[355470092,1741192242155,-786.33,0.00010999,2]
[355470093,1741192242163,-1339.06,0.00010999,2]
[355470094,1741192242172,-502.71,0.00010999,2]
[355470095,1741192242181,-1267.42,0.00010999,2]
[355470096,1741192242190,-1315.38,0.00010999,2]
[355470097,1741192242199,-794.81,0.00010999,2]
[355470098,1741192242207,-775.14,0.00010999,2]
[355470099,1741192242217,-500.0,0.00010999,2]
[355470100,1741192242226,-1621.88,0.00010999,2]
[355470101,1741192242480,-500.0,0.00010999,2]
[355470102,1741192242490,-500.0,0.00010999,2]
[355470103,1741192242500,-500.0,0.00010999,2]
[355470104,1741192242510,-500.0,0.00010999,2]
[355470105,1741192242520,-500.0,0.00010999,2]
[355470106,1741192242529,-509.34,0.00010999,2]
[355470107,1741192242538,-500.0,0.00010999,2]
[355470108,1741192242550,-962.31,0.00010999,2]
[355470109,1741192242560,-2145.67,0.00010999,2]
[355470110,1741192242570,-4136.96,0.00010999,2]
[355470111,1741192242580,-5348.2,0.00010999,2]
[355470112,1741192242593,-594.5,0.00010999,2]
[355470113,1741192242603,-500.0,0.00010999,2]
[355470114,1741192242612,-3580.45,0.00010999,2]
[355470115,1741192242622,-757.79,0.00010999,2]
[355470116,1741192242631,-524.49,0.00010999,2]
[355470117,1741192242642,-627.02,0.00010999,2]
[355470118,1741192242651,-19232.44,0.00010999,2]
[355470119,1741192242660,-863.69,0.00010999,2]
[355470120,1741192242670,-690.46,0.00010999,2]
[355470121,1741192242680,-4489.37,0.00010999,2]
[355470122,1741192242690,-640.18,0.00010999,2]
[355470123,1741192242699,-4314.12,0.00010999,2]
[355470124,1741192242708,-1359.03,0.00010999,2]
[355470125,1741192242717,-1757.6,0.00010999,2]
[355470126,1741192242726,-1666.76,0.00010999,2]
[355470127,1741192242734,-500.0,0.00010999,2]
[355470128,1741192242748,-528.91,0.00010999,2]
[355470129,1741192242758,-2539.91,0.00010999,2]
[355470130,1741192242767,-733.52,0.00010999,2]
[355470131,1741192242775,-503.04044503,0.00010999,2]
[355470132,1741192242784,-1138.07,0.00010999,2]
[355470133,1741192242795,-2650.79,0.00010999,2]
[355470134,1741192242804,-500.0,0.00010999,2]
[355470135,1741192242814,-1863.0,0.00010999,2]
[355470136,1741192242823,-22021.86,0.00010999,2]
[355470137,1741192242833,-1056.53,0.00010999,2]
[355470138,1741192242842,-720.46,0.00010999,2]
[355470139,1741192242851,-1575.81,0.00010999,2]
[355470140,1741192242860,-500.0,0.00010999,2]
[355470141,1741192242869,-2668.56,0.00010999,2]
[355470142,1741192242878,-438.95729888,0.00010999,2]
[355470143,1741192242888,-4274.11,0.00010999,2]
[355470144,1741192242897,-500.0,0.00010999,2]
[355470145,1741192242907,-500.0,0.00010999,2]
[355470146,1741192242916,-500.0,0.00010999,2]
[355470147,1741192242926,-500.0,0.00010999,2]
[355470148,1741192242936,-804.96,0.00010999,2]
[355470149,1741192242945,-2031.78,0.00010999,2]
[355470150,1741192242954,-981.38,0.00010999,2]
[355470151,1741192242963,-2004.63,0.00010999,2]
[355470152,1741192242972,-500.0,0.00010999,2]
[355470153,1741192242982,-2831.95,0.00010999,2]
[355470154,1741192242990,-4133.2,0.00010999,2]
[355470155,1741192242999,-500.0,0.00010999,2]
[355470156,1741192243010,-500.0,0.00010999,2]
[355470157,1741192243018,-859.11,0.00010999,2]
[355470158,1741192243027,-1193.54,0.00010999,2]
[355470159,1741192243035,-6759.11,0.00010999,2]
[355470160,1741192243044,-1643.37,0.00010999,2]
[355470162,1741192243054,-500.0,0.00010999,2]
[355470163,1741192243062,-4838.86,0.00010999,2]
[355470165,1741192243071,-634.45,0.00010999,2]
[355470166,1741192243080,-1007.92,0.00010999,2]
[355470167,1741192243090,-1949.49,0.00010999,2]
[355470168,1741192243099,-1866.4,0.00010999,2]
[355470169,1741192243109,-665.0,0.00010999,2]
[355470171,1741192243118,-630.83,0.00010999,2]
[355470173,1741192243127,-3340.44,0.00010999,2]
[355470175,1741192243136,-1417.41,0.00010999,2]
[355470177,1741192243146,-174.30109714,0.00010999,2]
[355470178,1741192243155,-500.0,0.00010999,2]
[355470180,1741192243164,-553.76,0.00010999,2]
[355470182,1741192243173,-807.73,0.00010999,2]
[355470185,1741192243182,-2770.97,0.00010999,2]
[355470188,1741192243192,-657.0,0.00010999,2]
[355470191,1741192243201,-860.34,0.00010999,2]
[355470195,1741192243211,-500.0,0.00010999,2]
[355470197,1741192243220,-1078.77,0.00010999,2]
[355470199,1741192243229,-151.25779499,0.00010999,2]
[355470201,1741192243238,-784.42,0.00010999,2]
[355470203,1741192243247,-500.0,0.00010999,2]
[355470205,1741192243256,-500.0,0.00010999,2]
[355470208,1741192243265,-500.0,0.00010999,2]
[355470210,1741192243275,-876.12,0.00010999,2]
[355470212,1741192243284,-1293.27,0.00010999,2]
[355470213,1741192243294,-500.0,0.00010999,2]
[355470215,1741192243303,-500.0,0.00010999,2]
[355470216,1741192243312,-1011.81,0.00010999,2]
[355470217,1741192243321,-500.0,0.00010999,2]
[355470218,1741192243330,-1922210.97051407,0.00011,2]
[355470219,1741192243339,-160013.03971852,0.00011,2]
[355470220,1741192243348,-550.0,0.00011,2]
[355470221,1741192243358,-150.0,0.00011023,2]
[355470222,1741192243366,-520.90458561,0.00011073,2]
[355470223,1741192243376,-165.45386263,0.00011073,2]
[355470224,1741192243385,-815.65859288,0.0001108,2]
[355470225,1741192243396,-250000.0,0.00011088,2]
[355470226,1741192243405,-500.0,0.00011089,2]
[355470227,1741192243413,-303.54606983,0.00011089,2]
[355470228,1741192243421,-503.58563812,0.00011089,2]
[355470229,1741192243429,-500.0,0.00011089,2]
[355470230,1741192243439,-455.0,0.00011089,2]
[355470231,1741192243448,-500.0,0.00011089,2]
[355470232,1741192243457,-472.507,0.00011089,2]
[355470233,1741192243467,-500.0,0.00011089,2]
[355470234,1741192243476,-500.0,0.00011089,2]
[355470235,1741192243485,-500.0,0.00011089,2]
[355470236,1741192243494,-508.39,0.00011089,2]
[355470237,1741192243507,-500.0,0.00011089,2]
[355470238,1741192243518,-502.92,0.00011089,2]
[355470239,1741192243532,-500.0,0.00011089,2]
[355470240,1741192243545,-509.24,0.00011089,2]
[355470241,1741192243557,-516.05,0.00011089,2]
[355470242,1741192243567,-776.65,0.00011089,2]
[355470243,1741192243578,-500.0,0.00011089,2]
[355470244,1741192243593,-500.0,0.00011089,2]
[355470245,1741192243602,-500.0,0.00011089,2]
[355470247,1741192243615,-732.28,0.00011089,2]
[355470248,1741192243628,-815.46,0.00011089,2]
[355470249,1741192243638,-500.0,0.00011089,2]
[355470250,1741192243649,-500.0,0.00011089,2]
[355470252,1741192243659,-285.11865396,0.00011089,2]
[355470254,1741192243670,-500.0,0.00011089,2]
[355470255,1741192243680,-500.0,0.00011089,2]
[355470256,1741192243691,-500.0,0.00011089,2]
[355470257,1741192243702,-552.44,0.00011089,2]
[355470259,1741192243712,-500.0,0.00011089,2]
[355470261,1741192243722,-500.0,0.00011089,2]
[355470263,1741192243733,-500.0,0.00011089,2]
[355470264,1741192243744,-203.77556325,0.00011089,2]
[355470266,1741192243754,-1090.14,0.00011089,2]
[355470268,1741192243764,-500.0,0.00011089,2]
[355470270,1741192243775,-500.0,0.00011089,2]
[355470272,1741192243786,-789.89,0.00011089,2]
[355470275,1741192243799,-500.0,0.00011089,2]
[355470277,1741192243808,-500.0,0.00011089,2]
[355470278,1741192243819,-500.0,0.00011089,2]
[355470280,1741192243829,-500.0,0.00011089,2]
[355470282,1741192243838,-500.0,0.00011089,2]
[355470284,1741192243850,-738.58,0.00011089,2]
[355470287,1741192243859,-500.0,0.00011089,2]
[355470290,1741192243873,-500.0,0.00011089,2]
[355470293,1741192243882,-702.5,0.00011089,2]
[355470295,1741192243892,-651.7,0.00011089,2]
[355470297,1741192243902,-500.0,0.00011089,2]
[355470299,1741192243912,-500.0,0.00011089,2]
[355470301,1741192243924,-770.26,0.00011089,2]
[355470303,1741192243934,-241.56574832,0.00011089,2]
[355470305,1741192243943,-500.0,0.00011089,2]
[355470307,1741192243953,-590.17479474,0.00011089,2]
[355470309,1741192243964,-647.74,0.00011089,2]
[355470311,1741192243976,-500.0,0.00011089,2]
[355470313,1741192243986,-812.8,0.00011089,2]
[355470315,1741192243995,-1338.47,0.00011089,2]
[355470317,1741192244005,-1173.96,0.00011089,2]
[355470319,1741192244015,-1069.4,0.00011089,2]
[355470321,1741192244024,-1032.9,0.00011089,2]
[355470323,1741192244033,-1454.67,0.00011089,2]
[355470325,1741192244043,-704.24,0.00011089,2]
[355470327,1741192244053,-500.0,0.00011089,2]
[355470329,1741192244063,-832.59,0.00011089,2]
[355470331,1741192244072,-798.31,0.00011089,2]
[355470333,1741192244082,-827.97,0.00011089,2]
[355470335,1741192244091,-600.3,0.00011089,2]
[355470337,1741192244100,-500.0,0.00011089,2]
[355470339,1741192244110,-500.0,0.00011089,2]
[355470341,1741192244119,-500.0,0.00011089,2]
[355470343,1741192244129,-733.79,0.00011089,2]
[355470345,1741192244139,-500.0,0.00011089,2]
[355470347,1741192244148,-500.0,0.00011089,2]
[355470349,1741192244157,-844.48,0.00011089,2]
[355470351,1741192244167,-516.0,0.00011089,2]
[355470353,1741192244175,-500.0,0.00011089,2]
[355470355,1741192244185,-500.0,0.00011089,2]
[355470357,1741192244195,-1114.85,0.00011089,2]
[355470359,1741192244204,-500.0,0.00011089,2]
[355470360,1741192244213,-500.0,0.00011089,2]
[355470361,1741192244223,-784.18,0.00011089,2]
[355470362,1741192244232,-500.0,0.00011089,2]
[355470363,1741192244241,-500.0,0.00011089,2]
[355470364,1741192244250,-500.0,0.00011089,2]
[355470365,1741192244259,-500.0,0.00011089,2]
[355470366,1741192244268,-500.0,0.00011089,2]
[355470367,1741192244278,-555.7,0.00011089,2]
[355470368,1741192244287,-643.89,0.00011089,2]
[355470369,1741192244298,-568.46,0.00011089,2]
[355470370,1741192244307,-500.0,0.00011089,2]
[355470371,1741192244316,-1047.88,0.00011089,2]
[355470372,1741192244324,-500.0,0.00011089,2]
[355470373,1741192244333,-1112.77,0.00011089,2]
[355470374,1741192244342,-873.28,0.00011089,2]
[355470375,1741192244351,-1101.62,0.00011089,2]
[355470376,1741192244360,-500.0,0.00011089,2]
[355470377,1741192244369,-845.67,0.00011089,2]
[355470378,1741192244379,-867.35,0.00011089,2]
[355470379,1741192244389,-519.65,0.00011089,2]
[355470380,1741192244398,-577.37,0.00011089,2]
[355470381,1741192244408,-529.12,0.00011089,2]
[355470382,1741192244416,-750.48,0.00011089,2]
[355470383,1741192244425,-856.97,0.00011089,2]
[355470384,1741192244435,-1041.43,0.00011089,2]
[355470385,1741192244444,-500.0,0.00011089,2]
[355470386,1741192244453,-715.98,0.00011089,2]
[355470387,1741192244462,-500.0,0.00011089,2]
[355470388,1741192244471,-1087.17,0.00011089,2]
[355470389,1741192244480,-500.0,0.00011089,2]
[355470390,1741192244489,-643.38,0.00011089,2]
[355470391,1741192244498,-926.61,0.00011089,2]
[355470392,1741192244508,-811.98,0.00011089,2]
[355470393,1741192244518,-1385.12,0.00011089,2]
[355470394,1741192244527,-1349.11,0.00011089,2]
[355470395,1741192244537,-500.0,0.00011089,2]
[355470396,1741192244549,-500.0,0.00011089,2]
[355470397,1741192244559,-500.0,0.00011089,2]
[355470398,1741192244570,-500.0,0.00011089,2]
[355470399,1741192244580,-1812.17,0.00011089,2]
[355470400,1741192244590,-1161.28,0.00011089,2]
[355470401,1741192244603,-749.46,0.00011089,2]
[355470402,1741192244612,-1099.53,0.00011089,2]
[355470403,1741192244623,-912.69,0.00011089,2]
[355470404,1741192244633,-3945.63,0.00011089,2]
[355470405,1741192244643,-500.0,0.00011089,2]
[355470406,1741192244654,-500.0,0.00011089,2]
[355470407,1741192244664,-7659.22,0.00011089,2]
[355470408,1741192244674,-1724.95,0.00011089,2]
[355470409,1741192244685,-1354.55,0.00011089,2]
[355470410,1741192244694,-3487.81,0.00011089,2]
[355470411,1741192244704,-500.0,0.00011089,2]
[355470412,1741192244713,-515.54,0.00011089,2]
[355470413,1741192244723,-2079.37,0.00011089,2]
[355470414,1741192244733,-1932.92,0.00011089,2]
[355470415,1741192244743,-761.84,0.00011089,2]
[355470416,1741192244753,-500.0,0.00011089,2]
[355470417,1741192244763,-500.0,0.00011089,2]
[355470418,1741192244774,-500.0,0.00011089,2]
[355470419,1741192244784,-969.29,0.00011089,2]
[355470420,1741192244794,-500.0,0.00011089,2]
[355470421,1741192244809,-2153.09835,0.00011089,2]
[355470422,1741192244819,-500.0,0.00011089,2]
[355470423,1741192244829,-500.0,0.00011089,2]
[355470424,1741192244839,-500.0,0.00011089,2]
[355470425,1741192244849,-500.0,0.00011089,2]
[355470426,1741192244858,-500.0,0.00011089,2]
[355470427,1741192244869,-1096.75,0.00011089,2]
[355470428,1741192244879,-1002.16,0.00011089,2]
[355470429,1741192244889,-1522.57,0.00011089,2]
[355470430,1741192244900,-1286.39,0.00011089,2]
[355470431,1741192244911,-990.13,0.00011089,2]
[355470432,1741192244920,-500.0,0.0001109,2]
[355470433,1741192244931,-500.0,0.0001109,2]
[355470434,1741192244941,-1649.52,0.0001109,2]
[355470435,1741192244950,-892.98,0.0001109,2]
[355470436,1741192244961,-993.64,0.0001109,2]
[355470437,1741192244970,-1398.51,0.0001109,2]
[355470438,1741192244980,-700.11,0.0001109,2]
[355470439,1741192244989,-2196.26,0.0001109,2]
[355470440,1741192244999,-1463.21,0.0001109,2]
[355470441,1741192245009,-1431.39,0.0001109,2]
[355470442,1741192245019,-1621.42,0.0001109,2]
[355470443,1741192245028,-1188.33,0.0001109,2]
[355470444,1741192245039,-728.69,0.0001109,2]
[355470445,1741192245054,-1659.17,0.0001109,2]
[355470446,1741192245065,-1287.37,0.0001109,2]
[355470447,1741192245075,-2205.9,0.0001109,2]
[355470448,1741192245085,-847.1,0.0001109,2]
[355470449,1741192245096,-2407.99,0.0001109,2]
[355470450,1741192245106,-1072.93,0.0001109,2]
[355470451,1741192245115,-1363.52,0.0001109,2]
[355470452,1741192245125,-1962.16,0.0001109,2]
[355470453,1741192245135,-500.0,0.0001109,2]
[355470454,1741192245145,-500.0,0.0001109,2]
[355470455,1741192245154,-1770.28,0.0001109,2]
[355470456,1741192245163,-500.0,0.0001109,2]
[355470457,1741192245173,-1341.43,0.0001109,2]
[355470458,1741192245183,-1310.41882762,0.00011099,2]
[355470459,1741192245192,-1310.41882761,0.00011099,2]
[355470460,1741192245202,-1310.41882761,0.00011099,2]
[355470461,1741192245210,-374.99967302,0.00011099,2]
[355470462,1741192245219,-374.99967294,0.00011099,2]
[355470463,1741192245227,-374.99967294,0.00011099,2]
[355470464,1741192245236,-1310.41882761,0.00011165,2]
[355470465,1741192245245,-374.99967294,0.00011165,2]
[355470466,1741192245254,-150.0,0.00011184,2]
[355470467,1741192245263,-714.86463243,0.000112,2]
[355470468,1741192245272,-714.86463215,0.000112,2]
[355470469,1741192245281,-714.86463215,0.000112,2]
[355470470,1741192245290,-714.86463215,0.000112,2]
[355470471,1741192245303,-714.86463215,0.000112,2]
[355470472,1741192245312,-521.8,0.00011223,2]
[355470473,1741192245321,-714.86463215,0.00011245,2]
[355470474,1741192245330,-1000.0,0.00011252,2]
[355470475,1741192245339,-1310.41882761,0.00011254,2]
[355470476,1741192245348,-374.99967294,0.00011254,2]
[355470477,1741192245357,-2153.09835,0.0001126,2]
[355470478,1741192245366,-848.52,0.00011271,2]
[355470479,1741192245376,-778.9,0.00011271,2]
[355470480,1741192245386,-982.71,0.00011271,2]
[355470481,1741192245395,-601.06,0.00011271,2]
[355470482,1741192245405,-696.17,0.00011271,2]
[355470483,1741192245415,-1589.79,0.00011271,2]
[355470484,1741192245424,-1810.33,0.00011271,2]
[355470485,1741192245433,-500.0,0.00011271,2]
[355470486,1741192245443,-1041.87,0.00011271,2]
[355470487,1741192245452,-1007.28,0.00011271,2]
[355470488,1741192245460,-2663.02,0.00011271,2]
[355470489,1741192245469,-500.0,0.00011271,2]
[355470490,1741192245479,-1155.34,0.00011271,2]
[355470491,1741192245487,-1802.98,0.00011271,2]
[355470492,1741192245497,-940.71,0.00011271,2]
[355470493,1741192245507,-821.44,0.00011271,2]
[355470494,1741192245517,-797.4,0.00011271,2]
[355470495,1741192245526,-1611.28,0.00011271,2]
[355470496,1741192245536,-500.0,0.00011271,2]
[355470497,1741192245548,-500.0,0.00011271,2]
[355470498,1741192245557,-500.0,0.00011271,2]
[355470499,1741192245566,-763.42,0.00011271,2]
[355470500,1741192245575,-500.0,0.00011271,2]
[355470501,1741192245588,-500.0,0.00011271,2]
[355470502,1741192245596,-593.41,0.00011271,2]
[355470503,1741192245606,-500.0,0.00011271,2]
[355470504,1741192245615,-742.21,0.00011271,2]
[355470505,1741192245625,-847.15,0.00011271,2]
[355470506,1741192245635,-6199.29,0.00011271,2]
[355470507,1741192245644,-500.0,0.00011271,2]
[355470508,1741192245653,-704.37,0.00011272,2]
[355470509,1741192245663,-1048.28,0.00011272,2]
[355470510,1741192245673,-1043.69,0.00011272,2]
[355470511,1741192245682,-332.267615,0.00011272,2]
[355470512,1741192245691,-500.0,0.00011272,2]
[355470513,1741192245700,-1269.1,0.00011272,2]
[355470514,1741192245709,-502.738769,0.00011272,2]
[355470515,1741192245718,-500.0,0.00011272,2]
[355470516,1741192245728,-1292.35,0.00011272,2]
[355470517,1741192245737,-1965.38,0.00011272,2]
[355470518,1741192245746,-4948.06,0.00011272,2]
[355470519,1741192245756,-2262.58,0.00011272,2]
[355470520,1741192245765,-1169.74,0.00011272,2]
[355470521,1741192245774,-1322.31,0.00011272,2]
[355470522,1741192245783,-4682.27,0.00011272,2]
[355470523,1741192245792,-1243.24,0.00011272,2]
[355470524,1741192245806,-1346.27,0.00011272,2]
[355470525,1741192245816,-1101.0,0.00011272,2]
[355470526,1741192245825,-1170.16,0.00011272,2]
[355470527,1741192245835,-2023.03,0.00011272,2]
[355470528,1741192245845,-1276.04,0.00011272,2]
[355470529,1741192245856,-2687.85,0.00011272,2]
[355470530,1741192245865,-4931.88,0.00011272,2]
[355470531,1741192245874,-1100.82,0.00011272,2]
[355470532,1741192245883,-7913.46,0.00011272,2]
[355470533,1741192245894,-500.0,0.00011273,2]
[355470534,1741192245904,-500.0,0.00011273,2]
[355470535,1741192245913,-500.0,0.00011273,2]
[355470536,1741192245923,-500.0,0.00011273,2]
[355470537,1741192245933,-689.1,0.00011273,2]
[355470538,1741192245942,-500.0,0.00011273,2]
[355470539,1741192245951,-528.33692161,0.00011273,2]
[355470540,1741192245960,-500.0,0.00011273,2]
[355470541,1741192245969,-500.0,0.00011273,2]
[355470542,1741192245978,-500.0,0.00011273,2]
[355470543,1741192245987,-500.0,0.00011273,2]
[355470544,1741192245996,-500.0,0.00011273,2]
[355470545,1741192246005,-500.0,0.00011273,2]
[355470546,1741192246014,-500.0,0.00011273,2]
[355470547,1741192246024,-500.0,0.00011273,2]
[355470549,1741192246033,-500.0,0.00011273,2]
[355470550,1741192246042,-501.12,0.00011273,2]
[355470552,1741192246055,-500.0,0.00011273,2]
[355470553,1741192246065,-500.0,0.00011273,2]
[355470554,1741192246074,-500.0,0.00011273,2]
[355470555,1741192246083,-500.0,0.00011273,2]
[355470556,1741192246092,-500.0,0.00011273,2]
[355470557,1741192246101,-500.0,0.00011273,2]
[355470558,1741192246110,-500.0,0.00011273,2]
[355470559,1741192246120,-500.0,0.00011273,2]
[355470560,1741192246129,-576.13,0.00011273,2]
[355470561,1741192246138,-500.0,0.00011273,2]
[355470562,1741192246147,-532.59,0.00011273,2]
[355470563,1741192246155,-303.5889765,0.00011273,2]
[355470564,1741192246165,-602.77,0.00011273,2]
[355470566,1741192246174,-506.5,0.00011273,2]
[355470567,1741192246183,-644.05,0.00011273,2]
[355470568,1741192246193,-625.18,0.00011273,2]
[355470569,1741192246202,-500.0,0.00011273,2]
[355470570,1741192246211,-463.08612921,0.00011273,2]
[355470571,1741192246220,-500.0,0.00011273,2]
[355470572,1741192246229,-762.52,0.00011273,2]
[355470573,1741192246238,-540.66,0.00011273,2]
[355470574,1741192246248,-879.02,0.00011273,2]
[355470575,1741192246257,-500.0,0.00011273,2]
[355470576,1741192246266,-574.28,0.00011273,2]
[355470577,1741192246276,-500.0,0.00011273,2]
[355470578,1741192246286,-500.0,0.00011273,2]
[355470579,1741192246300,-500.0,0.00011273,2]
[355470580,1741192246310,-500.0,0.00011273,2]
[355470581,1741192246320,-500.0,0.00011273,2]
[355470582,1741192246330,-500.0,0.00011273,2]
[355470583,1741192246340,-611.28,0.00011273,2]
[355470584,1741192246350,-500.0,0.00011273,2]
[355470585,1741192246360,-500.0,0.00011273,2]
[355470586,1741192246369,-500.0,0.00011273,2]
[355470587,1741192246378,-500.0,0.00011273,2]
[355470588,1741192246387,-591.79,0.00011273,2]
[355470589,1741192246397,-503.82,0.00011273,2]
[355470590,1741192246406,-500.0,0.00011273,2]
[355470591,1741192246416,-500.0,0.00011273,2]
[355470592,1741192246425,-500.0,0.00011273,2]
[355470593,1741192246435,-687.12,0.00011273,2]
[355470594,1741192246444,-607.91,0.00011273,2]